fUSD/lending_fUSD_20260126
["ID","MTS","AMOUNT","RATE_DAILY","PERIOD"]
[403589270,1769392253081,-500.0,0.00016438,2]
[403589271,1769392253091,-166.90958987,0.00016438,2]
[403589272,1769392253100,-500.0,0.00016438,2]
[403589273,1769392253109,-500.0,0.00016438,2]
[403589274,1769392253119,-500.0,0.00016438,2]
[403589275,1769392253130,-630.93,0.00016438,2]
[403589276,1769392253140,-508.83480444,0.00016438,2]
[403589277,1769392253150,-501.72922581,0.00016438,2]
[403589278,1769392253159,-500.0,0.00016438,2]
[403589279,1769392253168,-590.92431176,0.00016438,2]
[403589280,1769392253178,-500.0,0.00016438,2]
[403589281,1769392253187,-500.0,0.00016438,2]
[403589282,1769392253197,-500.0,0.00016438,2]
[403589283,1769392253207,-504.30478383,0.00016438,2]
[403589284,1769392253216,-500.0,0.00016438,2]
[403589285,1769392253226,-500.0,0.00016438,2]
[403589286,1769392253235,-599.76326198,0.00016438,2]
[403589287,1769392253246,-500.0,0.00016438,2]
[403589288,1769392253255,-500.0,0.00016438,2]
[403589289,1769392253265,-500.0,0.00016438,2]
[403589290,1769392253274,-500.0,0.00016438,2]
[403589291,1769392253283,-500.0,0.00016438,2]
[403589292,1769392253294,-671.4,0.00016438,2]
[403589293,1769392253304,-500.0,0.00016438,2]
[403589294,1769392253314,-500.0,0.00016438,2]
[403589295,1769392253324,-1383.44,0.00016438,2]
[403589296,1769392253334,-500.0,0.00016438,2]
[403589297,1769392253344,-500.0,0.00016438,2]
[403589298,1769392253353,-373.82106944,0.00016438,2]
[403589299,1769392253363,-500.0,0.00016438,2]
[403589300,1769392253372,-500.0,0.00016438,2]
[403589301,1769392253382,-1125.19,0.00016438,2]
[403589302,1769392253392,-500.0,0.00016438,2]
[403589303,1769392253402,-500.0,0.00016438,2]
[403589304,1769392253412,-500.0,0.00016438,2]
[403589305,1769392253421,-500.0,0.00016438,2]
[403589306,1769392253431,-500.0,0.00016438,2]
[403589307,1769392253446,-504.35265395,0.00016438,2]
[403589308,1769392253456,-500.0,0.00016438,2]
[403589309,1769392253466,-500.0,0.00016438,2]
[403589310,1769392253475,-500.0,0.00016438,2]
[403589311,1769392253485,-500.0,0.00016438,2]
[403589312,1769392253495,-500.0,0.00016438,2]
[403589313,1769392253505,-652.98,0.00016438,2]
[403589314,1769392253515,-500.0,0.00016438,2]
[403589315,1769392253525,-500.0,0.00016438,2]
[403589316,1769392253535,-500.0,0.00016438,2]
[403589317,1769392253546,-500.0,0.00016438,2]
[403589318,1769392253555,-526.45543642,0.00016438,2]
[403589319,1769392253566,-500.0,0.00016438,2]
[403589320,1769392253576,-500.0,0.00016438,2]
[403589321,1769392253586,-500.0,0.00016438,2]
[403589322,1769392253596,-500.0,0.00016438,2]
[403589323,1769392253606,-500.0,0.00016438,2]
[403589324,1769392253616,-500.0,0.00016438,2]
[403589325,1769392253626,-500.0,0.00016438,2]
[403589326,1769392253636,-500.0,0.00016438,2]
[403589327,1769392253646,-528.99351839,0.00016438,2]
[403589328,1769392253656,-500.0,0.00016438,2]
[403589329,1769392253666,-500.0,0.00016438,2]
[403589330,1769392253675,-500.0,0.00016438,2]
[403589331,1769392253686,-500.0,0.00016438,2]
[403589332,1769392253696,-500.0,0.00016438,2]
[403589333,1769392253706,-500.0,0.00016438,2]
[403589334,1769392253717,-500.0,0.00016438,2]
[403589335,1769392253727,-500.0,0.00016438,2]
[403589336,1769392253737,-500.0,0.00016438,2]
[403589337,1769392253751,-500.0,0.00016438,2]
[403589338,1769392253760,-500.0,0.00016438,2]
[403589339,1769392253771,-500.0,0.00016438,2]
[403589340,1769392253783,-500.0,0.00016438,2]
[403589341,1769392253793,-500.0,0.00016438,2]
[403589342,1769392253807,-576.56,0.00016438,2]
[403589343,1769392253823,-500.0,0.00016438,2]
[403589344,1769392253833,-405.73188259,0.00016438,2]
[403589345,1769392253843,-151.0,0.00016438,2]
[403589346,1769392253853,-500.0,0.00016438,2]
[403589347,1769392253863,-214.68459816,0.00016438,2]
[403589348,1769392253874,-500.0,0.00016438,2]
[403589349,1769392253884,-500.0,0.00016438,2]
[403589350,1769392253895,-500.0,0.00016438,2]
[403589351,1769392253905,-500.0,0.00016438,2]
[403589352,1769392253916,-500.0,0.00016438,2]
[403589353,1769392253931,-500.0,0.00016438,2]
[403589354,1769392253942,-500.0,0.00016438,2]
[403589355,1769392253952,-500.0,0.00016438,2]
[403589356,1769392253963,-500.0,0.00016438,2]
[403589357,1769392253973,-584.40045443,0.00016438,2]
[403589358,1769392253983,-500.0,0.00016438,2]
[403589359,1769392253993,-500.0,0.00016438,2]
[403589360,1769392254007,-500.0,0.00016438,2]
[403589361,1769392254017,-253.97953635,0.00016438,2]
[403589362,1769392254028,-500.0,0.00016438,2]
[403589363,1769392254038,-500.0,0.00016438,2]
[403589364,1769392254048,-500.0,0.00016438,2]
[403589365,1769392254059,-546.82329058,0.00016438,2]
[403589366,1769392254070,-500.0,0.00016438,2]
[403589367,1769392254080,-500.0,0.00016438,2]
[403589368,1769392254091,-547.74711533,0.00016438,2]
[403589369,1769392254102,-500.0,0.00016438,2]
[403589370,1769392254113,-500.0,0.00016438,2]
[403589371,1769392254125,-500.0,0.00016438,2]
[403589372,1769392254135,-500.0,0.00016438,2]
[403589373,1769392254145,-500.0,0.00016438,2]
[403589374,1769392254155,-500.0,0.00016438,2]
[403589375,1769392254165,-500.0,0.00016438,2]
[403589376,1769392254175,-500.0,0.00016438,2]
[403589377,1769392254184,-500.0,0.00016438,2]
[403589378,1769392254194,-508.44572198,0.00016438,2]
[403589379,1769392254203,-500.0,0.00016438,2]
[403589380,1769392254216,-500.0,0.00016438,2]
[403589381,1769392254226,-505.98418666,0.00016438,2]
[403589382,1769392254235,-528.23734046,0.00016438,2]
[403589383,1769392254245,-500.0,0.00016438,2]
[403589384,1769392254254,-500.0,0.00016438,2]
[403589385,1769392254264,-500.0,0.00016438,2]
[403589386,1769392254273,-500.0,0.00016438,2]
[403589387,1769392254282,-500.0,0.00016438,2]
[403589388,1769392254292,-547.05,0.00016438,2]
[403589389,1769392254301,-556.80559397,0.00016438,2]
[403589390,1769392254311,-500.0,0.00016438,2]
[403589391,1769392254321,-500.0,0.00016438,2]
[403589392,1769392254331,-524.87558491,0.00016438,2]
[403589393,1769392254340,-500.0,0.00016438,2]
[403589394,1769392254350,-500.0,0.00016438,2]
[403589395,1769392254360,-502.62784188,0.00016438,2]
[403589396,1769392254370,-507.59714237,0.00016438,2]
[403589397,1769392254380,-576.92,0.00016438,2]
[403589398,1769392254390,-512.71524283,0.00016438,2]
[403589399,1769392254403,-500.0,0.00016438,2]
[403589400,1769392254413,-500.0,0.00016438,2]
[403589401,1769392254423,-500.0,0.00016438,2]
[403589402,1769392254433,-500.0,0.00016438,2]
[403589403,1769392254443,-500.0,0.00016438,2]
[403589404,1769392254452,-537.17204037,0.00016438,2]
[403589405,1769392254462,-500.0,0.00016438,2]
[403589406,1769392254472,-500.0,0.00016438,2]
[403589407,1769392254481,-500.0,0.00016438,2]
[403589408,1769392254491,-500.0,0.00016438,2]
[403589409,1769392254500,-502.1460624,0.00016438,2]
[403589410,1769392254510,-500.0,0.00016438,2]
[403589411,1769392254519,-500.0,0.00016438,2]
[403589412,1769392254529,-500.0,0.00016438,2]
[403589413,1769392254538,-1524.51,0.00016438,2]
[403589414,1769392254548,-500.0,0.00016438,2]
[403589415,1769392254557,-500.0,0.00016438,2]
[403589416,1769392254566,-500.0,0.00016438,2]
[403589417,1769392254576,-500.0,0.00016438,2]
[403589418,1769392254585,-500.0,0.00016438,2]
[403589419,1769392254597,-500.0,0.00016438,2]
[403589420,1769392254606,-500.0,0.00016438,2]
[403589421,1769392254616,-500.0,0.00016438,2]
[403589422,1769392254625,-500.0,0.00016438,2]
[403589423,1769392254634,-514.58787098,0.00016438,2]
[403589424,1769392254644,-500.0,0.00016438,2]
[403589425,1769392254654,-500.0,0.00016438,2]
[403589426,1769392254663,-500.0,0.00016438,2]
[403589427,1769392254673,-500.0,0.00016438,2]
[403589428,1769392254687,-534.16997447,0.00016438,2]
[403589429,1769392254696,-553.82,0.00016438,2]
[403589430,1769392254706,-500.0,0.00016438,2]
[403589431,1769392254715,-517.05103764,0.00016438,2]
[403589432,1769392254725,-500.0,0.00016438,2]
[403589433,1769392254735,-500.0,0.00016438,2]
[403589434,1769392254745,-500.0,0.00016438,2]
[403589435,1769392254755,-504.85211026,0.00016438,2]
[403589436,1769392254768,-1000.0,0.00016438,2]
[403589437,1769392254778,-500.0,0.00016438,2]
[403589438,1769392254788,-500.0,0.00016438,2]
[403589439,1769392254798,-507.22038451,0.00016438,2]
[403589440,1769392254808,-537.38156062,0.00016438,2]
[403589441,1769392254817,-500.0,0.00016438,2]
[403589442,1769392254830,-500.0,0.00016438,2]
[403589443,1769392254841,-500.0,0.00016438,2]
[403589444,1769392254851,-510.94,0.00016438,2]
[403589445,1769392254860,-500.0,0.00016438,2]
[403589446,1769392254870,-500.0,0.00016438,2]
[403589447,1769392254880,-500.0,0.00016438,2]
[403589448,1769392254889,-500.0,0.00016438,2]
[403589449,1769392254899,-500.0,0.00016438,2]
[403589450,1769392254908,-500.0,0.00016438,2]
[403589451,1769392254918,-500.0,0.00016438,2]
[403589452,1769392254927,-443.39937661,0.00016438,2]
[403589453,1769392254937,-500.0,0.00016438,2]
[403589454,1769392254946,-500.0,0.00016438,2]
[403589455,1769392254956,-500.0,0.00016438,2]
[403589456,1769392254965,-500.0,0.00016438,2]
[403589457,1769392254975,-500.0,0.00016438,2]
[403589458,1769392254984,-500.0,0.00016438,2]
[403589459,1769392254994,-500.0,0.00016438,2]
[403589460,1769392255003,-500.0,0.00016438,2]
[403589461,1769392255013,-659.35,0.00016438,2]
[403589462,1769392255023,-511.01,0.00016438,2]
[403589463,1769392255032,-500.0,0.00016438,2]
[403589464,1769392255042,-500.0,0.00016438,2]
[403589465,1769392255051,-291.27122352,0.00016438,2]
[403589466,1769392255061,-500.0,0.00016438,2]
[403589467,1769392255071,-500.0,0.00016438,2]
[403589468,1769392255081,-1205.54,0.00016438,2]
[403589469,1769392255091,-500.0,0.00016438,2]
[403589470,1769392255100,-502.40606987,0.00016438,2]
[403589471,1769392255110,-500.0,0.00016438,2]
[403589472,1769392255124,-500.0,0.00016438,2]
[403589473,1769392255133,-500.0,0.00016438,2]
[403589474,1769392255142,-500.0,0.00016438,2]
[403589475,1769392255151,-1157.49,0.00016438,2]
[403589476,1769392255160,-500.0,0.00016438,2]
[403589477,1769392255171,-703.58,0.00016438,2]
[403589478,1769392255180,-500.0,0.00016438,2]
[403589479,1769392255190,-595.46101439,0.00016438,2]
[403589480,1769392255199,-500.0,0.00016438,2]
[403589481,1769392255210,-500.0,0.00016438,2]
[403589482,1769392255219,-500.0,0.00016438,2]
[403589483,1769392255228,-500.0,0.00016438,2]
[403589484,1769392255238,-500.0,0.00016438,2]
[403589485,1769392255247,-500.0,0.00016438,2]
[403589486,1769392255256,-298.61300948,0.00016438,2]
[403589487,1769392255265,-500.0,0.00016438,2]
[403589488,1769392255275,-500.0,0.00016438,2]
[403589489,1769392255284,-502.75655016,0.00016438,2]
[403589490,1769392255293,-721.88,0.00016438,2]
[403589491,1769392255302,-500.0,0.00016438,2]
[403589492,1769392255312,-502.67947409,0.00016438,2]
[403589493,1769392255320,-502.03140554,0.00016438,2]
[403589494,1769392255332,-500.0,0.00016438,2]
[403589495,1769392255346,-500.0,0.00016438,2]
[403589496,1769392255360,-500.0,0.00016438,2]
[403589497,1769392255371,-500.0,0.00016438,2]
[403589498,1769392255382,-1691.15,0.00016438,2]
[403589499,1769392255395,-500.0,0.00016438,2]
[403589500,1769392255408,-500.0,0.00016438,2]
[403589501,1769392255421,-500.0,0.00016438,2]
[403589502,1769392255434,-500.0,0.00016438,2]
[403589503,1769392255447,-500.0,0.00016438,2]
[403589504,1769392255458,-500.0,0.00016438,2]
[403589505,1769392255469,-513.16981068,0.00016438,2]
[403589506,1769392255481,-705.01,0.00016438,2]
[403589507,1769392255494,-500.0,0.00016438,2]
[403589508,1769392255506,-500.0,0.00016438,2]
[403589509,1769392255519,-466.03638519,0.00016438,2]
[403589510,1769392255532,-500.0,0.00016438,2]
[403589511,1769392255545,-164.752997,0.00016438,2]
[403589512,1769392255557,-500.0,0.00016438,2]
[403589513,1769392255570,-164.752997,0.00016438,2]
[403589514,1769392255583,-500.0,0.00016438,2]
[403589515,1769392255597,-500.0,0.00016438,2]
[403589516,1769392255610,-500.59387012,0.00016438,2]
[403589517,1769392255623,-500.0,0.00016438,2]
[403589518,1769392255636,-500.0,0.00016438,2]
[403589519,1769392255648,-5020.65,0.00016438,2]
[403589520,1769392255660,-500.0,0.00016438,2]
[403589521,1769392255677,-164.752997,0.00016438,2]
[403589522,1769392255690,-502.31687022,0.00016438,2]
[403589523,1769392255703,-500.0,0.00016438,2]
[403589524,1769392255716,-500.0,0.00016438,2]
[403589525,1769392255728,-164.752997,0.00016438,2]
[403589526,1769392255739,-500.0,0.00016438,2]
[403589527,1769392255754,-500.0,0.00016438,2]
[403589528,1769392255768,-500.0,0.00016438,2]
[403589529,1769392255781,-500.0,0.00016438,2]
[403589530,1769392255793,-511.3824132,0.00016438,2]
[403589531,1769392255804,-500.0,0.00016438,2]
[403589532,1769392255816,-500.0,0.00016438,2]
[403589533,1769392255828,-500.0,0.00016438,2]
[403589534,1769392255846,-500.0,0.00016438,2]
[403589535,1769392255859,-500.0,0.00016438,2]
[403589536,1769392255869,-811.52,0.00016438,2]
[403589537,1769392255880,-500.0,0.00016438,2]
[403589538,1769392255894,-500.0,0.00016438,2]
[403589539,1769392255905,-500.0,0.00016438,2]
[403589540,1769392255916,-500.0,0.00016438,2]
[403589541,1769392255928,-500.0,0.00016438,2]
[403589542,1769392255940,-500.0,0.00016438,2]
[403589543,1769392255952,-500.0,0.00016438,2]
[403589544,1769392255965,-372.10962951,0.00016438,2]
[403589545,1769392255978,-500.0,0.00016438,2]
[403589546,1769392255991,-500.0,0.00016438,2]
[403589547,1769392256003,-500.0,0.00016438,2]
[403589548,1769392256015,-500.0,0.00016438,2]
[403589549,1769392256028,-500.0,0.00016438,2]
[403589550,1769392256041,-500.0,0.00016438,2]
[403589551,1769392256053,-500.0,0.00016438,2]
[403589552,1769392256066,-500.0,0.00016438,2]
[403589553,1769392256080,-500.0,0.00016438,2]
[403589554,1769392256093,-885.94,0.00016438,2]
[403589555,1769392256105,-500.0,0.00016438,2]
[403589556,1769392256118,-557.04259993,0.00016438,2]
[403589557,1769392256130,-500.0,0.00016438,2]
[403589558,1769392256142,-500.0,0.00016438,2]
[403589559,1769392256154,-500.0,0.00016438,2]
[403589560,1769392256165,-500.0,0.00016438,2]
[403589561,1769392256177,-500.0,0.00016438,2]
[403589562,1769392256190,-500.0,0.00016438,2]
[403589563,1769392256201,-500.0,0.00016438,2]
[403589564,1769392256214,-500.0,0.00016438,2]
[403589565,1769392256226,-522.38601852,0.00016438,2]
[403589566,1769392256238,-500.0,0.00016438,2]
[403589567,1769392256249,-500.0,0.00016438,2]
[403589568,1769392256261,-503.03165848,0.00016438,2]
[403589569,1769392256273,-944.59,0.00016438,2]
[403589570,1769392256285,-323.28178399,0.00016438,2]
[403589571,1769392256298,-513.19562275,0.00016438,2]
[403589572,1769392256310,-500.0,0.00016438,2]
[403589573,1769392256322,-500.0,0.00016438,2]
[403589574,1769392256334,-500.0,0.00016438,2]
[403589575,1769392256346,-500.0,0.00016438,2]
[403589576,1769392256357,-500.0,0.00016438,2]
[403589577,1769392256369,-417.02214936,0.00016438,2]
[403589578,1769392256381,-500.0,0.00016438,2]
[403589579,1769392256392,-258.65807957,0.00016438,2]
[403589580,1769392256404,-500.0,0.00016438,2]
[403589581,1769392256416,-500.0,0.00016438,2]
[403589582,1769392256427,-500.0,0.00016438,2]
[403589583,1769392256438,-500.0,0.00016438,2]
[403589584,1769392256450,-500.0,0.00016438,2]
[403589585,1769392256461,-888.95,0.00016438,2]
[403589586,1769392256473,-500.0,0.00016438,2]
[403589587,1769392256491,-522.84528094,0.00016438,2]
[403589588,1769392256502,-500.0,0.00016438,2]
[403589589,1769392256513,-500.0,0.00016438,2]
[403589590,1769392256525,-500.0,0.00016438,2]
[403589591,1769392256536,-500.0,0.00016438,2]
[403589592,1769392256548,-505.80746504,0.00016438,2]
[403589593,1769392256560,-500.0,0.00016438,2]
[403589594,1769392256572,-500.0,0.00016438,2]
[403589595,1769392256583,-500.0,0.00016438,2]
[403589596,1769392256595,-507.77251875,0.00016438,2]
[403589597,1769392256606,-500.0,0.00016438,2]
[403589598,1769392256617,-500.0,0.00016438,2]
[403589599,1769392256628,-500.0,0.00016438,2]
[403589600,1769392256639,-500.0,0.00016438,2]
[403589601,1769392256650,-500.0,0.00016438,2]
[403589602,1769392256661,-500.0,0.00016438,2]
[403589603,1769392256672,-500.0,0.00016438,2]
[403589604,1769392256684,-500.0,0.00016438,2]
[403589605,1769392256695,-500.0,0.00016438,2]
[403589606,1769392256708,-500.0,0.00016438,2]
[403589607,1769392256719,-500.0,0.00016438,2]
[403589608,1769392256731,-500.0,0.00016438,2]
[403589609,1769392256743,-500.0,0.00016438,2]
[403589610,1769392256756,-500.0,0.00016438,2]
[403589611,1769392256770,-500.0,0.00016438,2]
[403589612,1769392256781,-500.0,0.00016438,2]
[403589613,1769392256792,-500.0,0.00016438,2]
[403589614,1769392256804,-500.0,0.00016438,2]
[403589615,1769392256815,-505.46273669,0.00016438,2]
[403589616,1769392256827,-500.0,0.00016438,2]
[403589617,1769392256840,-517.53197336,0.00016438,2]
[403589618,1769392256851,-500.0,0.00016438,2]
[403589619,1769392256863,-500.0,0.00016438,2]
[403589620,1769392256874,-440.90889878,0.00016438,2]
[403589621,1769392256886,-500.0,0.00016438,2]
[403589622,1769392256898,-500.0,0.00016438,2]
[403589623,1769392256910,-597.47482901,0.00016438,2]
[403589624,1769392256922,-500.0,0.00016438,2]
[403589625,1769392256933,-500.0,0.00016438,2]
[403589626,1769392256944,-500.0,0.00016438,2]
[403589627,1769392256956,-500.0,0.00016438,2]
[403589628,1769392256967,-500.0,0.00016438,2]
[403589629,1769392256979,-502.49630119,0.00016438,2]
[403589630,1769392256991,-500.0,0.00016438,2]
[403589631,1769392257006,-500.0,0.00016438,2]
[403589632,1769392257017,-500.0,0.00016438,2]
[403589633,1769392257029,-151.0,0.00016438,2]
[403589634,1769392257047,-500.0,0.00016438,2]
[403589635,1769392257060,-500.0,0.00016438,2]
[403589636,1769392257072,-500.0,0.00016438,2]
[403589637,1769392257083,-1824.72,0.00016438,2]
[403589638,1769392257096,-151.0,0.00016438,2]
[403589639,1769392257109,-500.0,0.00016438,2]
[403589640,1769392257120,-500.0,0.00016438,2]
[403589641,1769392257132,-1336.93,0.00016438,2]
[403589642,1769392257144,-500.0,0.00016438,2]
[403589643,1769392257156,-151.0,0.00016438,2]
[403589644,1769392257167,-507.99210606,0.00016438,2]
[403589645,1769392257179,-500.0,0.00016438,2]
[403589646,1769392257198,-500.0,0.00016438,2]
[403589647,1769392257219,-500.0,0.00016438,2]
[403589648,1769392257246,-500.0,0.00016438,2]
[403589649,1769392257260,-151.0,0.00016438,2]
[403589650,1769392257272,-506.87283474,0.00016438,2]
[403589651,1769392257286,-500.0,0.00016438,2]
[403589652,1769392257300,-500.0,0.00016438,2]
[403589653,1769392257316,-500.0,0.00016438,2]
[403589654,1769392257328,-418.93822156,0.00016438,2]
[403589655,1769392257341,-500.0,0.00016438,2]
[403589656,1769392257355,-500.0,0.00016438,2]
[403589657,1769392257367,-500.0,0.00016438,2]
[403589658,1769392257382,-500.0,0.00016438,2]
[403589659,1769392257399,-500.0,0.00016438,2]
[403589660,1769392257412,-500.0,0.00016438,2]
[403589661,1769392257427,-500.0,0.00016438,2]
[403589662,1769392257446,-500.0,0.00016438,2]
[403589663,1769392257468,-500.0,0.00016438,2]
[403589664,1769392257490,-500.0,0.00016438,2]
[403589665,1769392257509,-500.0,0.00016438,2]
[403589666,1769392257524,-200.0,0.00016438,2]
[403589667,1769392257538,-500.0,0.00016438,2]
[403589668,1769392257551,-500.0,0.00016438,2]
[403589669,1769392257564,-500.0,0.00016438,2]
[403589670,1769392257579,-500.0,0.00016438,2]
[403589671,1769392257591,-500.0,0.00016438,2]
[403589672,1769392257602,-500.0,0.00016438,2]
[403589673,1769392257614,-514.09486995,0.00016438,2]
[403589674,1769392257624,-500.0,0.00016438,2]
[403589675,1769392257636,-539.27167536,0.00016438,2]
[403589676,1769392257647,-461.94792292,0.00016438,2]
[403589677,1769392257658,-500.0,0.00016438,2]
[403589678,1769392257669,-500.0,0.00016438,2]
[403589679,1769392257680,-500.0,0.00016438,2]
[403589680,1769392257691,-500.0,0.00016438,2]
[403589681,1769392257703,-500.0,0.00016438,2]
[403589682,1769392257714,-501.32563192,0.00016438,2]
[403589683,1769392257725,-500.0,0.00016438,2]
[403589684,1769392257736,-500.0,0.00016438,2]
[403589685,1769392257750,-500.0,0.00016438,2]
[403589686,1769392257762,-227.03,0.00016438,2]
[403589687,1769392257772,-833.98,0.00016438,2]
[403589688,1769392257783,-151.0,0.00016438,2]
[403589689,1769392257796,-151.0,0.00016438,2]
[403589690,1769392257808,-165.3,0.0001644,2]
[403589691,1769392257818,-948.0,0.00016445,2]
[403589692,1769392257830,-455.0,0.00016445,2]
[403589693,1769392257841,-1172.0,0.00016467,2]
[403589694,1769392257852,-430.0,0.00016467,2]
[403589695,1769392257863,-500.0,0.00016493,2]
[403589696,1769392257879,-948.0,0.000165,2]
[403589697,1769392257890,-455.0,0.000165,2]
[403589698,1769392257902,-14241.385563,0.000165,2]
[403589699,1769392257913,-150.28234842,0.00016508,2]
[403589700,1769392257924,-4153.47282139,0.00016508,2]
[403589701,1769392257935,-513.29797102,0.00016508,2]
[403589702,1769392257946,-253.31238298,0.00016508,2]
[403589703,1769392257958,-302.44852871,0.00016508,2]
[403589704,1769392257969,-1000.0,0.00016515,2]
[403589705,1769392257980,-1172.0,0.00016522,2]
[403589706,1769392257991,-430.0,0.00016522,2]
[403589707,1769392258002,-170.12535558,0.00016532,2]
[403589708,1769392258013,-500.0,0.00016548,2]
[403589709,1769392258023,-510.0,0.00016551,2]
[403589710,1769392258034,-948.0,0.00016555,2]
[403589711,1769392258046,-455.0,0.00016555,2]
[403589712,1769392258056,-1172.0,0.00016577,2]
[403589713,1769392258067,-430.0,0.00016577,2]
[403589714,1769392258078,-193.2457437,0.00016597,2]
[403589715,1769392258089,-500.0,0.00016602,2]
[403589716,1769392258100,-177.18113843,0.00016609,2]
[403589717,1769392258112,-181.08010149,0.00016609,2]
[403589718,1769392258123,-885.86649465,0.00016609,2]
[403589719,1769392258134,-151.0,0.00016609,2]
[403589720,1769392258145,-948.0,0.00016609,2]
[403589721,1769392258155,-455.0,0.00016609,2]
[403589722,1769392258166,-1172.0,0.00016631,2]
[403589723,1769392258177,-430.0,0.00016631,2]
[403589724,1769392258188,-13441.39032039,0.00016641,2]
[403589725,1769392258199,-3114.66095137,0.00016641,2]
[403589726,1769392258209,-500.0,0.00016657,2]
[403589727,1769392258220,-966.52186183,0.00016664,2]
[403589728,1769392258231,-456.50115977,0.00016664,2]
[403589729,1769392258242,-1254.3,0.00016684,2]
[403589730,1769392258252,-1191.16581227,0.00016686,2]
[403589731,1769392258263,-430.0,0.00016686,2]
[403589732,1769392258274,-8474.0,0.00016697,2]
[403589733,1769392258285,-196.95961488,0.00016711,8]
[403589734,1769392258297,-500.0,0.00016712,2]
[403589735,1769392258309,-502.7494546,0.00016712,2]
[403589736,1769392258320,-506.756421,0.00016712,2]
[403589737,1769392258331,-500.0,0.00016712,2]
[403589738,1769392258342,-500.0,0.00016712,2]
[403589739,1769392258353,-500.0,0.00016712,2]
[403589740,1769392258364,-340.0,0.00016712,2]
[403589741,1769392258375,-516.6588709,0.00016712,2]
[403589742,1769392258387,-501.52570522,0.00016712,2]
[403589743,1769392258398,-500.0,0.00016712,2]
[403589744,1769392258410,-512.4921532,0.00016712,2]
[403589745,1769392258420,-500.0,0.00016712,2]
[403589746,1769392258431,-500.0,0.00016712,2]
[403589747,1769392258442,-348.85545249,0.00016712,2]
[403589748,1769392258453,-522.36986313,0.00016712,2]
[403589749,1769392258463,-506.97511344,0.00016712,2]
[403589750,1769392258474,-500.22,0.00016712,2]
[403589751,1769392258889,-500.0,0.00016712,2]
[403589752,1769392258923,-511.85402446,0.00016712,2]
[403589753,1769392258942,-513.32787344,0.00016712,2]
[403589754,1769392258953,-625.09144797,0.00016712,2]
[403589755,1769392258963,-500.0,0.00016712,2]
[403589756,1769392258972,-500.0,0.00016712,2]
[403589757,1769392258981,-500.0,0.00016712,2]
[403589758,1769392258990,-500.0,0.00016712,2]
[403589759,1769392259000,-504.94676614,0.00016712,2]
[403589760,1769392259009,-500.0,0.00016712,2]
[403589761,1769392259019,-500.0,0.00016712,2]
[403589762,1769392259028,-500.0,0.00016712,2]
[403589763,1769392259037,-512.07313911,0.00016712,2]
[403589764,1769392259047,-500.0,0.00016712,2]
[403589765,1769392259056,-500.0,0.00016712,2]
[403589766,1769392259066,-500.0,0.00016712,2]
[403589767,1769392259075,-500.0,0.00016712,2]
[403589768,1769392259083,-500.0,0.00016712,2]
[403589769,1769392259092,-500.0,0.00016712,2]